[Event "Titled Tuesday Blitz January 17 Late 2023"]
[White "Carnicelli, Valerio"]
[Black "Sivakumar, Shaaketh"]
[WhiteFideId "856185"]
[BlackFideId "30940176"]
[WhiteElo "2370"]
[BlackElo "2337"]
[Result "1-0"]
[Round "03"]
[TimeControl "180+2"]
[Date "2023.01.17"]
[WhiteClock "0:00:10"]
[BlackClock "0:00:21"]

1. e4 {[%clk 0:03:00]}  e6 {[%clk 0:03:00]} 2. d4 {[%clk 0:03:00]}  d5 {[%clk 0:03:00]} 3. Nc3 {[%clk 0:03:01]}  Nf6 {[%clk 0:02:59]} 4. Bg5 {[%clk 0:02:59]}  Be7 {[%clk 0:02:56]} 5. e5 {[%clk 0:03:00]}  Nfd7 {[%clk 0:02:56]} 6. h4 {[%clk 0:03:01]}  h6 {[%clk 0:02:53]} 7. Be3 {[%clk 0:02:58]}  a6 {[%clk 0:02:52]} 8. Qg4 {[%clk 0:02:58]}  Kf8 {[%clk 0:02:49]} 9. Rh3 {[%clk 0:02:56]}  h5 {[%clk 0:02:46]} 10. Qf4 {[%clk 0:02:55]}  c5 {[%clk 0:02:28]} 11. O-O-O {[%clk 0:02:54]}  Nc6 {[%clk 0:02:23]} 12. Nf3 {[%clk 0:02:38]}  Qa5 {[%clk 0:02:20]} 13. Rg3 {[%clk 0:02:30]}  cxd4 {[%clk 0:02:12]} 14. Bxd4 {[%clk 0:02:29]}  b5 {[%clk 0:02:04]} 15. Kb1 {[%clk 0:02:17]}  Bb4 {[%clk 0:01:47]} 16. Ng5 {[%clk 0:02:14]}  Nd8 {[%clk 0:01:46]} 17. Rf3 {[%clk 0:02:12]}  Ke8 {[%clk 0:01:30]} 18. Bd3 {[%clk 0:01:56]}  Rf8 {[%clk 0:01:14]} 19. Nxd5 {[%clk 0:01:48]}  exd5 {[%clk 0:01:11]} 20. e6 {[%clk 0:01:48]}  Nxe6 {[%clk 0:01:09]} 21. Nxe6 {[%clk 0:01:45]}  fxe6 {[%clk 0:01:10]} 22. Bg6+ {[%clk 0:01:45]}  Kd8 {[%clk 0:01:10]} 23. Qg5+ {[%clk 0:01:39]}  Be7 {[%clk 0:01:10]} 24. Qxh5 {[%clk 0:01:39]}  Rxf3 {[%clk 0:01:09]} 25. Qxf3 {[%clk 0:01:37]}  Bf6 {[%clk 0:01:00]} 26. Bxf6+ {[%clk 0:01:31]}  Nxf6 {[%clk 0:01:01]} 27. h5 {[%clk 0:01:32]}  Ke7 {[%clk 0:01:00]} 28. g4 {[%clk 0:01:29]}  Bb7 {[%clk 0:00:47]} 29. g5 {[%clk 0:01:29]}  Nd7 {[%clk 0:00:48]} 30. Qf7+ {[%clk 0:01:27]}  Kd6 {[%clk 0:00:48]} 31. Qxg7 {[%clk 0:01:27]}  Qb4 {[%clk 0:00:45]} 32. h6 {[%clk 0:01:25]}  Qg4 {[%clk 0:00:46]} 33. Re1 {[%clk 0:01:13]}  Qxg5 {[%clk 0:00:44]} 34. h7 {[%clk 0:01:09]}  Qf6 {[%clk 0:00:44]} 35. Qh6 {[%clk 0:01:06]}  Ne5 {[%clk 0:00:43]} 36. Qh2 {[%clk 0:01:01]}  d4 {[%clk 0:00:29]} 37. Bf7 {[%clk 0:00:58]}  Rh8 {[%clk 0:00:26]} 38. Bg8 {[%clk 0:00:58]}  Bf3 {[%clk 0:00:24]} 39. Qg3 {[%clk 0:00:52]}  Kd5 {[%clk 0:00:24]} 40. Rxe5+ {[%clk 0:00:47]}  Qxe5 {[%clk 0:00:24]} 41. Qxf3+ {[%clk 0:00:47]}  Qe4 {[%clk 0:00:24]} 42. Bxe6+ {[%clk 0:00:25]}  Ke5 {[%clk 0:00:24]} 43. Qxe4+ {[%clk 0:00:24]}  Kxe4 {[%clk 0:00:24]} 44. Bg8 {[%clk 0:00:23]}  Kf3 {[%clk 0:00:25]} 45. Kc1 {[%clk 0:00:22]}  Kxf2 {[%clk 0:00:25]} 46. Kd2 {[%clk 0:00:23]}  Kf3 {[%clk 0:00:25]} 47. Kd3 {[%clk 0:00:23]}  Kf2 {[%clk 0:00:24]} 48. Kxd4 {[%clk 0:00:20]}  Ke2 {[%clk 0:00:25]} 49. b3 {[%clk 0:00:20]}  Kd2 {[%clk 0:00:24]} 50. c4 {[%clk 0:00:20]}  bxc4 {[%clk 0:00:25]} 51. bxc4 {[%clk 0:00:21]}  Kc2 {[%clk 0:00:25]} 52. c5 {[%clk 0:00:21]}  Kb2 {[%clk 0:00:26]} 53. c6 {[%clk 0:00:21]}  a5 {[%clk 0:00:26]} 54. c7 {[%clk 0:00:21]}  a4 {[%clk 0:00:25]} 55. c8=Q {[%clk 0:00:21]}  a3 {[%clk 0:00:25]} 56. Qc3+ {[%clk 0:00:17]}  Kb1 {[%clk 0:00:24]} 57. Qxa3 {[%clk 0:00:14]}  Kc2 {[%clk 0:00:20]} 58. Qb3+ {[%clk 0:00:11]}  Kd2 {[%clk 0:00:21]} 59. Qb2+ {[%clk 0:00:10]}  Ke1 {[%clk 0:00:21]} 60. Ke3 {[%clk 0:00:10]}  Kf1 {[%clk 0:00:21]} 61. Qf2# {[%clk 0:00:10]} 1-0


[Site "https://www.chess.com"]

[Event "Titled Tuesday Blitz January 17 Late 2023"]
[White "Chor, Kevin"]
[Black "Kouskoutis, Georgios-Alexandros"]
[WhiteFideId "2090740"]
[BlackFideId "4234049"]
[WhiteElo "1944"]
[BlackElo "2295"]
[Result "1-0"]
[Round "03"]
[TimeControl "180+2"]
[Date "2023.01.17"]
[WhiteClock "0:01:22"]
[BlackClock "0:00:04"]

1. e4 {[%clk 0:03:00]}  c5 {[%clk 0:02:41]} 2. Nf3 {[%clk 0:02:58]}  d6 {[%clk 0:02:39]} 3. d4 {[%clk 0:02:56]}  cxd4 {[%clk 0:02:40]} 4. Nxd4 {[%clk 0:02:57]}  Nf6 {[%clk 0:02:41]} 5. Nc3 {[%clk 0:02:57]}  g6 {[%clk 0:02:41]} 6. Be3 {[%clk 0:02:57]}  Bg7 {[%clk 0:02:41]} 7. f3 {[%clk 0:02:57]}  a6 {[%clk 0:02:42]} 8. Qd2 {[%clk 0:02:55]}  h5 {[%clk 0:02:42]} 9. Nd5 {[%clk 0:02:35]}  Nbd7 {[%clk 0:02:29]} 10. c4 {[%clk 0:02:30]}  e6 {[%clk 0:01:52]} 11. Nc3 {[%clk 0:02:26]}  Qc7 {[%clk 0:01:38]} 12. O-O-O {[%clk 0:02:16]}  b6 {[%clk 0:01:21]} 13. Nc2 {[%clk 0:01:59]}  Bf8 {[%clk 0:01:14]} 14. Bf4 {[%clk 0:01:51]}  Ne5 {[%clk 0:01:10]} 15. Kb1 {[%clk 0:01:51]}  Bb7 {[%clk 0:01:06]} 16. Bg5 {[%clk 0:01:43]}  Nfd7 {[%clk 0:01:00]} 17. f4 {[%clk 0:01:40]}  Nxc4 {[%clk 0:00:53]} 18. Qd4 {[%clk 0:01:38]}  f6 {[%clk 0:00:20]} 19. Bxf6 {[%clk 0:01:36]}  Nxf6 {[%clk 0:00:10]} 20. Qxf6 {[%clk 0:01:36]}  Nxb2 {[%clk 0:00:06]} 21. Kxb2 {[%clk 0:01:26]}  Bg7 {[%clk 0:00:06]} 22. Qxe6+ {[%clk 0:01:25]}  Kf8 {[%clk 0:00:04]} 23. Qxd6+ {[%clk 0:01:23]}  Qxd6 {[%clk 0:00:04]} 24. Rxd6 {[%clk 0:01:24]}  Rc8 {[%clk 0:00:04]} 25. e5 {[%clk 0:01:22]} 1-0


[Site "https://www.chess.com"]

[Event "Titled Tuesday Blitz January 17 Late 2023"]
[White "Khripachenko, Alexander"]
[Black "Gurevich, Dmitry"]
[WhiteFideId "54184975"]
[BlackFideId "2000407"]
[WhiteElo "2110"]
[BlackElo "2393"]
[Result "1-0"]
[Round "03"]
[TimeControl "180+2"]
[Date "2023.01.17"]
[WhiteClock "0:01:05"]
[BlackClock "0:00:07"]

1. e4 {[%clk 0:02:59]}  c5 {[%clk 0:02:55]} 2. Nf3 {[%clk 0:02:59]}  d6 {[%clk 0:02:54]} 3. d4 {[%clk 0:02:59]}  cxd4 {[%clk 0:02:54]} 4. Nxd4 {[%clk 0:02:58]}  Nf6 {[%clk 0:02:53]} 5. Nc3 {[%clk 0:02:59]}  Nc6 {[%clk 0:02:53]} 6. f3 {[%clk 0:02:56]}  Nxd4 {[%clk 0:02:52]} 7. Qxd4 {[%clk 0:02:55]}  g6 {[%clk 0:02:52]} 8. Be3 {[%clk 0:02:52]}  Bg7 {[%clk 0:02:52]} 9. O-O-O {[%clk 0:02:50]}  O-O {[%clk 0:02:46]} 10. Qd2 {[%clk 0:02:50]}  Be6 {[%clk 0:02:45]} 11. h4 {[%clk 0:02:50]}  h5 {[%clk 0:02:44]} 12. Kb1 {[%clk 0:02:50]}  Rc8 {[%clk 0:02:41]} 13. Be2 {[%clk 0:02:46]}  Rxc3 {[%clk 0:02:34]} 14. Qxc3 {[%clk 0:02:20]}  Nxe4 {[%clk 0:02:24]} 15. Qb4 {[%clk 0:02:19]}  Ng3 {[%clk 0:02:20]} 16. Rhe1 {[%clk 0:02:19]}  Nxe2 {[%clk 0:02:18]} 17. Rxe2 {[%clk 0:02:19]}  Qc7 {[%clk 0:02:11]} 18. Bd4 {[%clk 0:02:19]}  Bxd4 {[%clk 0:02:04]} 19. Qxd4 {[%clk 0:02:17]}  Rc8 {[%clk 0:02:02]} 20. b3 {[%clk 0:02:14]}  Qc5 {[%clk 0:01:59]} 21. Kb2 {[%clk 0:02:13]}  Qxd4+ {[%clk 0:01:57]} 22. Rxd4 {[%clk 0:02:13]}  Rc5 {[%clk 0:01:55]} 23. c4 {[%clk 0:02:14]}  a6 {[%clk 0:01:50]} 24. a4 {[%clk 0:02:09]}  a5 {[%clk 0:01:48]} 25. Kc3 {[%clk 0:02:05]}  Kg7 {[%clk 0:01:47]} 26. Rb2 {[%clk 0:02:04]}  Kf6 {[%clk 0:01:40]} 27. b4 {[%clk 0:02:02]}  axb4+ {[%clk 0:01:38]} 28. Rxb4 {[%clk 0:02:02]}  Rc7 {[%clk 0:01:28]} 29. a5 {[%clk 0:01:59]}  Bc8 {[%clk 0:01:23]} 30. Rb5 {[%clk 0:01:50]}  Rc6 {[%clk 0:01:21]} 31. Kb4 {[%clk 0:01:47]}  e5 {[%clk 0:01:14]} 32. Rd2 {[%clk 0:01:44]}  Be6 {[%clk 0:01:11]} 33. c5 {[%clk 0:01:39]}  dxc5+ {[%clk 0:01:07]} 34. Rxc5 {[%clk 0:01:38]}  Ra6 {[%clk 0:01:06]} 35. Rb5 {[%clk 0:01:37]}  Rc6 {[%clk 0:00:59]} 36. Rxb7 {[%clk 0:01:35]}  Rc4+ {[%clk 0:00:59]} 37. Kb5 {[%clk 0:01:35]}  Rc1 {[%clk 0:00:31]} 38. a6 {[%clk 0:01:16]}  Bc4+ {[%clk 0:00:21]} 39. Kb6 {[%clk 0:01:14]}  Rb1+ {[%clk 0:00:17]} 40. Kc5 {[%clk 0:01:14]}  Rc1 {[%clk 0:00:12]} 41. Rb6+ {[%clk 0:01:13]}  Kf5 {[%clk 0:00:09]} 42. a7 {[%clk 0:01:11]}  Be6+ {[%clk 0:00:07]} 43. Kd6 {[%clk 0:01:08]}  Ra1 {[%clk 0:00:07]} 44. Rb7 {[%clk 0:01:05]} 1-0


[Site "https://www.chess.com"]

[Event "Titled Tuesday Blitz January 17 Late 2023"]
[White "Novikova, Galina"]
[Black "Fernandez Garcia, Gumersindo"]
[WhiteFideId "4157095"]
[BlackFideId "24516740"]
[WhiteElo "2073"]
[BlackElo "2160"]
[Result "0-1"]
[Round "03"]
[TimeControl "180+2"]
[Date "2023.01.17"]
[WhiteClock "0:00:07"]
[BlackClock "0:01:17"]

1. e4 {[%clk 0:03:00]}  d6 {[%clk 0:02:54]} 2. d4 {[%clk 0:03:00]}  Nf6 {[%clk 0:02:55]} 3. Nc3 {[%clk 0:03:01]}  e5 {[%clk 0:02:55]} 4. f3 {[%clk 0:03:00]}  c6 {[%clk 0:02:54]} 5. Be3 {[%clk 0:03:00]}  Nbd7 {[%clk 0:02:53]} 6. Qd2 {[%clk 0:03:00]}  Be7 {[%clk 0:02:53]} 7. O-O-O {[%clk 0:02:59]}  b5 {[%clk 0:02:53]} 8. g4 {[%clk 0:02:59]}  b4 {[%clk 0:02:51]} 9. Nce2 {[%clk 0:02:59]}  a5 {[%clk 0:02:51]} 10. h4 {[%clk 0:02:57]}  O-O {[%clk 0:02:50]} 11. h5 {[%clk 0:02:57]}  a4 {[%clk 0:02:42]} 12. Kb1 {[%clk 0:02:55]}  b3 {[%clk 0:02:42]} 13. cxb3 {[%clk 0:02:56]}  axb3 {[%clk 0:02:42]} 14. a3 {[%clk 0:02:57]}  d5 {[%clk 0:02:38]} 15. g5 {[%clk 0:02:53]}  Ne8 {[%clk 0:02:37]} 16. g6 {[%clk 0:02:48]}  Nef6 {[%clk 0:02:28]} 17. gxh7+ {[%clk 0:02:46]}  Kh8 {[%clk 0:02:24]} 18. Ng3 {[%clk 0:02:39]}  exd4 {[%clk 0:02:18]} 19. Bxd4 {[%clk 0:02:39]}  c5 {[%clk 0:02:18]} 20. Bf2 {[%clk 0:02:35]}  d4 {[%clk 0:02:18]} 21. Nf5 {[%clk 0:02:30]}  Ne5 {[%clk 0:02:18]} 22. Nxg7 {[%clk 0:02:12]}  Kxg7 {[%clk 0:02:06]} 23. Qg5+ {[%clk 0:02:11]}  Kh8 {[%clk 0:02:03]} 24. Qxe5 {[%clk 0:02:10]}  Qd6 {[%clk 0:01:51]} 25. Qxd6 {[%clk 0:01:46]}  Bxd6 {[%clk 0:01:52]} 26. Bc4 {[%clk 0:01:38]}  Be6 {[%clk 0:01:48]} 27. Bxe6 {[%clk 0:01:01]}  fxe6 {[%clk 0:01:49]} 28. Ne2 {[%clk 0:00:53]}  Kxh7 {[%clk 0:01:45]} 29. Bg3 {[%clk 0:00:46]}  e5 {[%clk 0:01:41]} 30. Bh4 {[%clk 0:00:42]}  Ng8 {[%clk 0:01:37]} 31. Rdf1 {[%clk 0:00:42]}  Nh6 {[%clk 0:01:37]} 32. Bg5 {[%clk 0:00:39]}  c4 {[%clk 0:01:34]} 33. Bxh6 {[%clk 0:00:38]}  Kxh6 {[%clk 0:01:34]} 34. Ng3 {[%clk 0:00:39]}  Kh7 {[%clk 0:01:29]} 35. Nf5 {[%clk 0:00:39]}  Bxa3 {[%clk 0:01:19]} 36. bxa3 {[%clk 0:00:28]}  Rxa3 {[%clk 0:01:20]} 37. Rhg1 {[%clk 0:00:09]}  Rfa8 {[%clk 0:01:18]} 38. Rg7+ {[%clk 0:00:07]}  Kh8 {[%clk 0:01:17]} 0-1


[Site "https://www.chess.com"]

[Event "Titled Tuesday Blitz January 17 Late 2023"]
[White "Rego, Pedro Filipe"]
[Black "Adewumi, Tanitoluwa"]
[WhiteFideId "1904310"]
[BlackFideId "30966396"]
[WhiteElo "2312"]
[BlackElo "2283"]
[Result "1-0"]
[Round "03"]
[TimeControl "180+2"]
[Date "2023.01.17"]
[WhiteClock "0:00:36"]
[BlackClock "0:00:03"]

1. c4 {[%clk 0:03:00]}  e5 {[%clk 0:02:44]} 2. Nc3 {[%clk 0:02:55]}  Nc6 {[%clk 0:02:37]} 3. g3 {[%clk 0:02:53]}  g6 {[%clk 0:02:35]} 4. Bg2 {[%clk 0:02:51]}  d6 {[%clk 0:02:35]} 5. e4 {[%clk 0:02:47]}  h5 {[%clk 0:02:32]} 6. h3 {[%clk 0:02:46]}  h4 {[%clk 0:02:30]} 7. g4 {[%clk 0:02:46]}  Bh6 {[%clk 0:02:30]} 8. Nge2 {[%clk 0:02:40]}  Be6 {[%clk 0:02:28]} 9. d3 {[%clk 0:02:37]}  Bxc1 {[%clk 0:02:25]} 10. Rxc1 {[%clk 0:02:36]}  Qg5 {[%clk 0:02:16]} 11. O-O {[%clk 0:02:29]}  Nge7 {[%clk 0:01:33]} 12. f4 {[%clk 0:02:23]}  exf4 {[%clk 0:01:33]} 13. Nxf4 {[%clk 0:02:24]}  Nd4 {[%clk 0:01:18]} 14. Ncd5 {[%clk 0:02:04]}  O-O-O {[%clk 0:01:04]} 15. Qd2 {[%clk 0:01:48]}  Nec6 {[%clk 0:00:32]} 16. b4 {[%clk 0:01:42]}  Bxg4 {[%clk 0:00:25]} 17. hxg4 {[%clk 0:01:17]}  h3 {[%clk 0:00:20]} 18. Bf3 {[%clk 0:01:11]}  Ne5 {[%clk 0:00:11]} 19. Bd1 {[%clk 0:01:08]}  Rh4 {[%clk 0:00:11]} 20. Qf2 {[%clk 0:01:03]}  h2+ {[%clk 0:00:09]} 21. Kh1 {[%clk 0:01:01]}  Rdh8 {[%clk 0:00:08]} 22. Qxd4 {[%clk 0:00:55]}  Nxg4 {[%clk 0:00:08]} 23. Bxg4+ {[%clk 0:00:48]}  Qxg4 {[%clk 0:00:09]} 24. Ng2 {[%clk 0:00:44]}  Rh3 {[%clk 0:00:07]} 25. Qxa7 {[%clk 0:00:41]}  Rg3 {[%clk 0:00:05]} 26. Qa8+ {[%clk 0:00:37]}  Kd7 {[%clk 0:00:05]} 27. Rxf7+ {[%clk 0:00:37]}  Ke6 {[%clk 0:00:03]} 28. Re7# {[%clk 0:00:36]} 1-0


[Site "https://www.chess.com"]

[Event "Titled Tuesday Blitz January 17 Late 2023"]
[White "Richter, Paul"]
[Black "Shubin, Daniel"]
[WhiteFideId "2046350"]
[BlackFideId "30936470"]
[WhiteElo "2171"]
[BlackElo "2231"]
[Result "1/2-1/2"]
[Round "03"]
[TimeControl "180+2"]
[Date "2023.01.17"]
[WhiteClock "0:00:59"]
[BlackClock "0:01:39"]

1. e4 {[%clk 0:03:00]}  e6 {[%clk 0:02:59]} 2. d4 {[%clk 0:02:59]}  d5 {[%clk 0:02:59]} 3. Nc3 {[%clk 0:03:00]}  Bb4 {[%clk 0:02:58]} 4. e5 {[%clk 0:03:00]}  c5 {[%clk 0:02:57]} 5. a3 {[%clk 0:03:00]}  Bxc3+ {[%clk 0:02:57]} 6. bxc3 {[%clk 0:03:01]}  Ne7 {[%clk 0:02:57]} 7. h4 {[%clk 0:03:00]}  Qc7 {[%clk 0:02:46]} 8. Nf3 {[%clk 0:02:58]}  b6 {[%clk 0:02:46]} 9. h5 {[%clk 0:02:56]}  h6 {[%clk 0:02:46]} 10. a4 {[%clk 0:02:47]}  Ba6 {[%clk 0:02:45]} 11. Bxa6 {[%clk 0:02:40]}  Nxa6 {[%clk 0:02:44]} 12. Rh4 {[%clk 0:02:33]}  Rc8 {[%clk 0:02:41]} 13. Rg4 {[%clk 0:02:26]}  cxd4 {[%clk 0:02:35]} 14. cxd4 {[%clk 0:02:23]}  Nf5 {[%clk 0:02:27]} 15. Ba3 {[%clk 0:01:26]}  Qc3+ {[%clk 0:02:19]} 16. Kf1 {[%clk 0:01:17]}  Qxc2 {[%clk 0:02:17]} 17. Qe1 {[%clk 0:01:08]}  Qd3+ {[%clk 0:01:56]} 18. Kg1 {[%clk 0:01:07]}  Qc3 {[%clk 0:01:48]} 19. Qd1 {[%clk 0:01:03]}  Qc2 {[%clk 0:01:47]} 20. Qe1 {[%clk 0:01:02]}  Qc3 {[%clk 0:01:46]} 21. Qd1 {[%clk 0:01:01]}  Qc2 {[%clk 0:01:41]} 22. Qe1 {[%clk 0:00:59]}  Qc3 {[%clk 0:01:39]} 1/2-1/2


[Site "https://www.chess.com"]

[Event "Titled Tuesday Blitz January 17 Late 2023"]
[White "Figorito, Nick"]
[Black "Sebag, Marie"]
[WhiteFideId "30923689"]
[BlackFideId "617822"]
[WhiteElo "2036"]
[BlackElo "2430"]
[Result "0-1"]
[Round "03"]
[TimeControl "180+2"]
[Date "2023.01.17"]
[WhiteClock "0:00:30"]
[BlackClock "0:02:14"]

1. Nf3 {[%clk 0:03:00]}  Nf6 {[%clk 0:02:59]} 2. g3 {[%clk 0:03:01]}  b6 {[%clk 0:02:59]} 3. Bg2 {[%clk 0:03:01]}  Bb7 {[%clk 0:02:59]} 4. O-O {[%clk 0:03:02]}  c5 {[%clk 0:02:58]} 5. c4 {[%clk 0:03:03]}  e6 {[%clk 0:02:59]} 6. Nc3 {[%clk 0:03:04]}  Be7 {[%clk 0:02:59]} 7. b3 {[%clk 0:03:03]}  O-O {[%clk 0:02:59]} 8. Bb2 {[%clk 0:03:04]}  d6 {[%clk 0:02:59]} 9. d4 {[%clk 0:03:04]}  cxd4 {[%clk 0:02:59]} 10. Qxd4 {[%clk 0:03:05]}  Nbd7 {[%clk 0:02:58]} 11. Rad1 {[%clk 0:02:56]}  a6 {[%clk 0:02:58]} 12. Nh4 {[%clk 0:02:48]}  Bxg2 {[%clk 0:02:55]} 13. Nxg2 {[%clk 0:02:49]}  Qc7 {[%clk 0:02:54]} 14. Ne4 {[%clk 0:02:48]}  Rac8 {[%clk 0:02:52]} 15. Nxd6 {[%clk 0:02:45]}  Rcd8 {[%clk 0:02:44]} 16. Qf4 {[%clk 0:01:39]}  e5 {[%clk 0:02:35]} 17. Qd2 {[%clk 0:00:47]}  Nc5 {[%clk 0:02:30]} 18. Nf5 {[%clk 0:00:40]}  Rxd2 {[%clk 0:02:26]} 19. Rxd2 {[%clk 0:00:41]}  Nce4 {[%clk 0:02:24]} 20. Rd3 {[%clk 0:00:37]}  Bc5 {[%clk 0:02:21]} 21. Nge3 {[%clk 0:00:30]}  g6 {[%clk 0:02:14]} 0-1


[Site "https://www.chess.com"]

[Event "Titled Tuesday Blitz January 17 Late 2023"]
[White "Prydun, Andriy"]
[Black "Kochetov, Andrey"]
[WhiteFideId "14145898"]
[BlackFideId "24130532"]
[WhiteElo "2134"]
[BlackElo "2165"]
[Result "0-1"]
[Round "03"]
[TimeControl "180+2"]
[Date "2023.01.17"]
[WhiteClock "0:00:02"]
[BlackClock "0:00:11"]

1. e4 {[%clk 0:03:00]}  d5 {[%clk 0:02:58]} 2. exd5 {[%clk 0:02:59]}  Qxd5 {[%clk 0:02:59]} 3. Nc3 {[%clk 0:02:59]}  Qa5 {[%clk 0:02:59]} 4. h3 {[%clk 0:02:46]}  Nf6 {[%clk 0:02:56]} 5. Nf3 {[%clk 0:02:45]}  c6 {[%clk 0:02:56]} 6. d4 {[%clk 0:02:44]}  Bf5 {[%clk 0:02:54]} 7. Ne5 {[%clk 0:02:43]}  h6 {[%clk 0:02:50]} 8. Nc4 {[%clk 0:02:39]}  Qc7 {[%clk 0:02:49]} 9. Bd3 {[%clk 0:02:37]}  Bxd3 {[%clk 0:02:45]} 10. Qxd3 {[%clk 0:02:37]}  e6 {[%clk 0:02:46]} 11. O-O {[%clk 0:02:35]}  Be7 {[%clk 0:02:34]} 12. Qf3 {[%clk 0:02:24]}  O-O {[%clk 0:02:31]} 13. Bf4 {[%clk 0:02:23]}  Qd8 {[%clk 0:02:26]} 14. Rad1 {[%clk 0:02:22]}  Nbd7 {[%clk 0:02:25]} 15. Rfe1 {[%clk 0:02:20]}  Nd5 {[%clk 0:02:16]} 16. Bg3 {[%clk 0:02:16]}  Nxc3 {[%clk 0:02:11]} 17. Qxc3 {[%clk 0:02:17]}  Nf6 {[%clk 0:02:12]} 18. Qb3 {[%clk 0:02:13]}  b6 {[%clk 0:02:04]} 19. Ne5 {[%clk 0:02:07]}  Qc8 {[%clk 0:01:59]} 20. c4 {[%clk 0:01:56]}  Rd8 {[%clk 0:01:53]} 21. Bh4 {[%clk 0:01:46]}  c5 {[%clk 0:01:48]} 22. d5 {[%clk 0:01:46]}  Nxd5 {[%clk 0:01:45]} 23. cxd5 {[%clk 0:01:43]}  Bxh4 {[%clk 0:01:45]} 24. Nxf7 {[%clk 0:01:35]}  Kxf7 {[%clk 0:01:23]} 25. dxe6+ {[%clk 0:01:34]}  Kf8 {[%clk 0:01:16]} 26. Qf3+ {[%clk 0:01:26]}  Kg8 {[%clk 0:01:08]} 27. Rxd8+ {[%clk 0:00:40]}  Qxd8 {[%clk 0:01:03]} 28. Qf7+ {[%clk 0:00:39]}  Kh8 {[%clk 0:01:00]} 29. e7 {[%clk 0:00:39]}  Qe8 {[%clk 0:00:58]} 30. Qd5 {[%clk 0:00:34]}  Rb8 {[%clk 0:00:43]} 31. Re6 {[%clk 0:00:30]}  Bf6 {[%clk 0:00:23]} 32. b3 {[%clk 0:00:29]}  Qf7 {[%clk 0:00:11]} 33. Rxf6 {[%clk 0:00:03]}  Qxf6 {[%clk 0:00:11]} 34. Qd8+ {[%clk 0:00:02]}  Rxd8 {[%clk 0:00:11]} 0-1


[Site "https://www.chess.com"]

[Event "Titled Tuesday Blitz January 17 Late 2023"]
[White "Kaganskiy, Gleb"]
[Black "Rodrigues, Tiago Pereira"]
[WhiteFideId "4132025"]
[BlackFideId "2101203"]
[WhiteElo "2205"]
[BlackElo "2155"]
[Result "0-1"]
[Round "03"]
[TimeControl "180+2"]
[Date "2023.01.17"]
[WhiteClock "0:00:05"]
[BlackClock "0:00:16"]

1. e4 {[%clk 0:03:00]}  c5 {[%clk 0:02:55]} 2. Nf3 {[%clk 0:03:00]}  a6 {[%clk 0:02:52]} 3. c3 {[%clk 0:02:59]}  d5 {[%clk 0:02:52]} 4. exd5 {[%clk 0:02:58]}  Qxd5 {[%clk 0:02:53]} 5. d4 {[%clk 0:02:58]}  Nf6 {[%clk 0:02:52]} 6. Be2 {[%clk 0:02:56]}  e6 {[%clk 0:02:51]} 7. Be3 {[%clk 0:02:54]}  Nbd7 {[%clk 0:02:51]} 8. dxc5 {[%clk 0:02:51]}  Qxd1+ {[%clk 0:02:50]} 9. Bxd1 {[%clk 0:02:51]}  Bxc5 {[%clk 0:02:51]} 10. Bxc5 {[%clk 0:02:46]}  Nxc5 {[%clk 0:02:51]} 11. Bc2 {[%clk 0:02:46]}  b6 {[%clk 0:02:51]} 12. Ne5 {[%clk 0:02:39]}  Bb7 {[%clk 0:02:51]} 13. O-O {[%clk 0:02:39]}  Ke7 {[%clk 0:02:52]} 14. Nd2 {[%clk 0:02:37]}  Rhd8 {[%clk 0:02:50]} 15. Ndf3 {[%clk 0:02:29]}  h6 {[%clk 0:02:50]} 16. Rad1 {[%clk 0:02:26]}  g5 {[%clk 0:02:50]} 17. Nd4 {[%clk 0:02:21]}  Kf8 {[%clk 0:02:46]} 18. Ndc6 {[%clk 0:02:16]}  Rdc8 {[%clk 0:02:40]} 19. Nd4 {[%clk 0:02:04]}  Kg7 {[%clk 0:02:38]} 20. f3 {[%clk 0:01:57]}  Nd5 {[%clk 0:02:34]} 21. Rfe1 {[%clk 0:01:55]}  a5 {[%clk 0:02:29]} 22. Nd3 {[%clk 0:01:50]}  Nxd3 {[%clk 0:02:26]} 23. Bxd3 {[%clk 0:01:48]}  Nf4 {[%clk 0:02:26]} 24. Bf1 {[%clk 0:01:43]}  Bd5 {[%clk 0:02:25]} 25. a3 {[%clk 0:01:42]}  Kf6 {[%clk 0:02:11]} 26. Kf2 {[%clk 0:01:36]}  Rc7 {[%clk 0:02:09]} 27. Nb5 {[%clk 0:01:33]}  Rd7 {[%clk 0:02:03]} 28. Nd4 {[%clk 0:00:55]}  Rad8 {[%clk 0:02:01]} 29. Ne2 {[%clk 0:00:42]}  Ng6 {[%clk 0:01:53]} 30. Nd4 {[%clk 0:00:30]}  Ne5 {[%clk 0:01:47]} 31. Bb5 {[%clk 0:00:27]}  Rd6 {[%clk 0:01:47]} 32. Bf1 {[%clk 0:00:26]}  h5 {[%clk 0:01:31]} 33. Nb5 {[%clk 0:00:23]}  R6d7 {[%clk 0:01:30]} 34. Nd4 {[%clk 0:00:23]}  h4 {[%clk 0:01:31]} 35. Bb5 {[%clk 0:00:23]}  Rd6 {[%clk 0:01:31]} 36. Bf1 {[%clk 0:00:22]}  Ng6 {[%clk 0:01:30]} 37. Nb5 {[%clk 0:00:22]}  R6d7 {[%clk 0:01:30]} 38. Nd4 {[%clk 0:00:20]}  Nf4 {[%clk 0:01:28]} 39. Bb5 {[%clk 0:00:20]}  Rd6 {[%clk 0:01:28]} 40. Bf1 {[%clk 0:00:20]}  Bb7 {[%clk 0:01:25]} 41. g3 {[%clk 0:00:11]}  hxg3+ {[%clk 0:01:25]} 42. hxg3 {[%clk 0:00:12]}  Ng6 {[%clk 0:01:25]} 43. Be2 {[%clk 0:00:11]}  Bd5 {[%clk 0:01:18]} 44. Nb5 {[%clk 0:00:11]}  R6d7 {[%clk 0:01:18]} 45. Rh1 {[%clk 0:00:11]}  Bb3 {[%clk 0:00:43]} 46. Rxd7 {[%clk 0:00:10]}  Rxd7 {[%clk 0:00:44]} 47. Nd4 {[%clk 0:00:09]}  Bd5 {[%clk 0:00:44]} 48. Rd1 {[%clk 0:00:08]}  Rd8 {[%clk 0:00:40]} 49. Nb5 {[%clk 0:00:07]}  Rh8 {[%clk 0:00:39]} 50. Kg1 {[%clk 0:00:05]}  Ne5 {[%clk 0:00:39]} 51. Nd4 {[%clk 0:00:04]}  Ke7 {[%clk 0:00:35]} 52. Rd2 {[%clk 0:00:04]}  Rh3 {[%clk 0:00:23]} 53. Nf5+ {[%clk 0:00:03]}  Kf6 {[%clk 0:00:23]} 54. Kg2 {[%clk 0:00:01]}  g4 {[%clk 0:00:21]} 55. Nd4 {[%clk 0:00:02]}  Rh8 {[%clk 0:00:18]} 56. Kg1 {[%clk 0:00:03]}  gxf3 {[%clk 0:00:18]} 57. Bf1 {[%clk 0:00:04]}  Ng4 {[%clk 0:00:18]} 58. Rh2 {[%clk 0:00:05]}  Rxh2 {[%clk 0:00:16]} 0-1


[Site "https://www.chess.com"]